fUST/lending_fUST_20250331
["ID","MTS","AMOUNT","RATE_DAILY","PERIOD"]
[356909339,1743418243008,-500.0,0.00019178,2]
[356909340,1743418243018,-500.0,0.00019178,2]
[356909341,1743418243027,-600.21089297,0.00019178,2]
[356909342,1743418243037,-500.0,0.00019178,2]
[356909343,1743418243046,-500.0,0.00019178,2]
[356909344,1743418243055,-500.0,0.00019178,2]
[356909345,1743418243064,-500.0,0.00019178,2]
[356909346,1743418243074,-500.0,0.00019178,2]
[356909347,1743418243084,-974.1,0.00019178,2]
[356909348,1743418243093,-500.0,0.00019178,2]
[356909349,1743418243103,-500.0,0.00019178,2]
[356909350,1743418243113,-500.0,0.00019178,2]
[356909351,1743418243123,-443.9970931,0.00019178,2]
[356909352,1743418243132,-500.0,0.00019178,2]
[356909353,1743418243142,-500.0,0.00019178,2]
[356909354,1743418243152,-640.79,0.00019178,2]
[356909355,1743418243163,-1200.27,0.00019178,2]
[356909356,1743418243173,-500.0,0.00019178,2]
[356909357,1743418243183,-500.0,0.00019178,2]
[356909358,1743418243193,-500.0,0.00019178,2]
[356909359,1743418243202,-1620.86,0.00019178,2]
[356909360,1743418243212,-151.0,0.00019178,2]
[356909361,1743418243222,-215.34632908,0.00019178,2]
[356909362,1743418243232,-938.99922275,0.000192,2]
[356909363,1743418243241,-151.0,0.000192,2]
[356909364,1743418243252,-98277.39469456,0.00019206,2]
[356909365,1743418243262,-151.0,0.00019206,2]
[356909366,1743418243271,-940.755392,0.00019206,2]
[356909367,1743418243281,-940.755392,0.00019206,2]
[356909368,1743418243291,-500.0,0.00019206,2]
[356909369,1743418243300,-500.0,0.00019206,2]
[356909370,1743418243310,-500.0,0.00019206,2]
[356909371,1743418243320,-500.0,0.00019206,2]
[356909372,1743418243329,-500.0,0.00019206,2]
[356909373,1743418243339,-500.0,0.00019206,2]
[356909374,1743418243348,-500.0,0.00019206,2]
[356909375,1743418243359,-500.0,0.00019206,2]
[356909376,1743418243369,-500.0,0.00019206,2]
[356909377,1743418243378,-500.0,0.00019206,2]
[356909378,1743418243388,-401.145663,0.00019206,2]
[356909379,1743418243398,-259.481078,0.00019206,2]
[356909380,1743418243409,-259.481078,0.00019206,2]
[356909381,1743418243419,-773.75335495,0.00019229,2]
[356909382,1743418243429,-156.587,0.00019233,2]
[356909383,1743418243439,-2182.0813039,0.00019257,2]
[356909384,1743418243450,-802.38222908,0.00019284,2]
[356909385,1743418243459,-217.86016674,0.00019288,2]
[356909386,1743418243469,-228316.26847802,0.000193,2]
[356909387,1743418243494,-38013.33783776,0.000193,2]
[356909388,1743418243504,-151.0,0.000193,2]
[356909389,1743418243514,-208.740892,0.000193,2]
[356909390,1743418243523,-940.755392,0.000193,2]
[356909391,1743418243533,-940.755392,0.000193,2]
[356909392,1743418243543,-259.481078,0.000193,2]
[356909393,1743418243552,-259.481078,0.000193,2]
[356909394,1743418243563,-12458.93820146,0.00019312,2]
[356909395,1743418243573,-160.0,0.00019312,2]
[356909396,1743418243582,-418.85542,0.00019312,2]
[356909397,1743418243592,-160.0,0.00019312,2]
[356909398,1743418243603,-160.0,0.00019312,2]
[356909399,1743418243613,-835.65699134,0.00019312,2]
[356909400,1743418243623,-44581.96058937,0.00019329,2]
[356909401,1743418243633,-832.07037156,0.00019339,2]
[356909402,1743418243643,-542.0,0.00019372,2]
[356909403,1743418243653,-150.0,0.00019372,2]
[356909404,1743418243664,-1381.62965545,0.00019372,2]
[356909500,1743419432500,-185.198147,0.00013699,2]
[356909501,1743419432510,-863.38793795,0.00015586,2]
[356909502,1743419432519,-517.017753,0.00015872,2]
[356909503,1743419432530,-250.0,0.00015952,2]
[356909504,1743419432541,-3000.0,0.00016,2]
[356909505,1743419432551,-3000.0,0.0001601,2]
[356909506,1743419432561,-300.0,0.00016019,2]
[356909507,1743419432570,-3000.0,0.0001602,2]
[356909508,1743419432579,-499.999999,0.0001602,2]
[356909509,1743419432590,-574.0294929,0.00016029,2]
[356909510,1743419432600,-4355.635392,0.0001603,2]
[356909511,1743419432610,-6612.7464241,0.00016471,2]
[356909512,1743419432620,-4009.254294,0.00016471,2]
[356909513,1743419432630,-500.0,0.0001687,2]
[356909514,1743419432639,-420.0,0.00017514,2]
[356909515,1743419432649,-500.0,0.00017899,2]
[356909516,1743419432660,-2708.80520588,0.000179,2]
[356909517,1743419432669,-1000.0,0.00018,2]
[356909519,1743419432679,-1576.66600224,0.00018,2]
[356909521,1743419432689,-5000.0,0.00018476,2]
[356909523,1743419432699,-500.0,0.00018476,2]
[356909525,1743419432708,-197.58946377,0.00018478,2]
[356909527,1743419432718,-500.0,0.00018554,2]
[356909529,1743419432728,-577.39154427,0.00018554,2]
[356909531,1743419432738,-13138.75524687,0.00018555,2]
[356909533,1743419432748,-370000.0,0.00018578,2]
[356909535,1743419432758,-1216.60685911,0.00018578,2]
[356909537,1743419432767,-2708.8052057,0.0001859,2]
[356909540,1743419432778,-197.58946375,0.0001862,2]
[356909542,1743419432787,-197.58946375,0.00018762,2]
[356909544,1743419432797,-155.0,0.00018862,2]
[356909546,1743419432807,-302.0,0.00018862,2]
[356909548,1743419432816,-600.0,0.00018862,2]
[356909550,1743419432827,-151.0,0.00018862,2]
[356909552,1743419432836,-622.2,0.00018917,2]
[356909554,1743419432846,-645.2214,0.00018972,2]
[356909556,1743419432856,-669.0945918,0.00019027,2]
[356909558,1743419432865,-693.8510917,0.00019082,2]
[356909560,1743419432876,-719.52358209,0.00019137,2]
[356909562,1743419432885,-587.0,0.00019148,2]
[356909564,1743419432895,-562.06741625,0.00019178,2]
[356909566,1743419432905,-500.0,0.00019178,2]
[356909568,1743419432914,-505.7329546,0.00019178,2]
[356909570,1743419432924,-505.85997015,0.00019178,2]
[356909572,1743419432935,-500.0,0.00019178,2]
[356909574,1743419432944,-500.0,0.00019178,2]
[356909576,1743419432954,-502.00954041,0.00019178,2]
[356909578,1743419432963,-500.0,0.00019178,2]
[356909580,1743419432973,-500.0,0.00019178,2]
[356909581,1743419432983,-500.0,0.00019178,2]
[356909582,1743419432992,-500.0,0.00019178,2]
[356909583,1743419433003,-500.0,0.00019178,2]
[356909584,1743419433012,-500.0,0.00019178,2]
[356909585,1743419433022,-500.0,0.00019178,2]
[356909586,1743419433032,-500.0,0.00019178,2]
[356909587,1743419433042,-500.0,0.00019178,2]
[356909588,1743419433051,-500.0,0.00019178,2]
[356909589,1743419433061,-500.0,0.00019178,2]
[356909590,1743419433071,-500.0,0.00019178,2]
[356909591,1743419433081,-500.0,0.00019178,2]
[356909592,1743419433091,-500.0,0.00019178,2]
[356909593,1743419433102,-500.0,0.00019178,2]
[356909594,1743419433112,-500.0,0.00019178,2]
[356909595,1743419433122,-500.0,0.00019178,2]
[356909596,1743419433133,-500.0,0.00019178,2]
[356909597,1743419433143,-172.95062123,0.00019178,2]
[356909598,1743419433152,-500.0,0.00019178,2]
[356909599,1743419433162,-500.0,0.00019178,2]
[356909600,1743419433172,-500.0,0.00019178,2]
[356909601,1743419433182,-500.0,0.00019178,2]
[356909602,1743419433192,-500.0,0.00019178,2]
[356909603,1743419433202,-500.0,0.00019178,2]
[356909604,1743419433212,-500.0,0.00019178,2]
[356909605,1743419433223,-500.0,0.00019178,2]
[356909606,1743419433233,-500.0,0.00019178,2]
[356909607,1743419433244,-500.0,0.00019178,2]
[356909608,1743419433254,-500.0,0.00019178,2]
[356909609,1743419433264,-498.12394634,0.00019178,2]
[356909610,1743419433274,-500.0,0.00019178,2]
[356909611,1743419433284,-500.0,0.00019178,2]
[356909612,1743419433294,-500.0,0.00019178,2]
[356909613,1743419433304,-497.30580011,0.00019178,2]
[356909614,1743419433315,-398.57736706,0.00019178,2]
[356909615,1743419433326,-500.0,0.00019178,2]
[356909616,1743419433336,-500.0,0.00019178,2]
[356909617,1743419433346,-500.0,0.00019178,2]
[356909618,1743419433357,-500.0,0.00019178,2]
[356909619,1743419433366,-500.0,0.00019178,2]
[356909620,1743419433376,-500.0,0.00019178,2]
[356909621,1743419433386,-500.0,0.00019178,2]
[356909622,1743419433396,-500.0,0.00019178,2]
[356909623,1743419433406,-500.0,0.00019178,2]
[356909624,1743419433416,-500.0,0.00019178,2]
[356909625,1743419433426,-500.0,0.00019178,2]
[356909626,1743419433436,-500.0,0.00019178,2]
[356909627,1743419433447,-500.0,0.00019178,2]
[356909628,1743419433456,-500.0,0.00019178,2]
[356909629,1743419433467,-500.0,0.00019178,2]
[356909630,1743419433476,-500.0,0.00019178,2]
[356909631,1743419433487,-500.0,0.00019178,2]
[356909632,1743419433496,-500.0,0.00019178,2]
[356909633,1743419433506,-614.09,0.00019178,2]
[356909634,1743419433516,-500.0,0.00019178,2]
[356909635,1743419433525,-927.58,0.00019178,2]
[356909636,1743419433535,-500.0,0.00019178,2]
[356909637,1743419433544,-500.0,0.00019178,2]
[356909638,1743419433554,-500.01110696,0.00019178,2]
[356909639,1743419433563,-297.08444,0.00019178,2]
[356909640,1743419433573,-500.0,0.00019178,2]
[356909641,1743419433583,-500.0,0.00019178,2]
[356909642,1743419433593,-743.83,0.00019178,2]
[356909643,1743419433602,-743.83,0.00019178,2]
[356909644,1743419433612,-743.83,0.00019178,2]
[356909645,1743419433621,-743.83,0.00019178,2]
[356909646,1743419433631,-743.83,0.00019178,2]
[356909647,1743419433641,-743.83,0.00019178,2]
[356909648,1743419433650,-500.0,0.00019178,2]
[356909649,1743419433660,-743.83,0.00019178,2]
[356909650,1743419433669,-743.83,0.00019178,2]
[356909651,1743419433679,-743.83,0.00019178,2]
[356909652,1743419433688,-743.83,0.00019178,2]
[356909653,1743419433697,-743.83,0.00019178,2]
[356909654,1743419433707,-743.83,0.00019178,2]
[356909655,1743419433716,-743.83,0.00019178,2]
[356909656,1743419433726,-743.83,0.00019178,2]
[356909657,1743419433735,-743.83,0.00019178,2]
[356909658,1743419433745,-743.83,0.00019178,2]
[356909659,1743419433755,-743.83,0.00019178,2]
[356909660,1743419433764,-743.83,0.00019178,2]
[356909661,1743419433774,-743.83,0.00019178,2]
[356909662,1743419433783,-743.83,0.00019178,2]
[356909663,1743419433791,-743.83,0.00019178,2]
[356909664,1743419433801,-743.83,0.00019178,2]
[356909665,1743419433811,-743.83,0.00019178,2]
[356909666,1743419433820,-500.0,0.00019178,2]
[356909667,1743419433830,-744.03,0.00019178,2]
[356909668,1743419433840,-500.0,0.00019178,2]
[356909669,1743419433850,-500.0,0.00019178,2]
[356909670,1743419433860,-500.0,0.00019178,2]
[356909671,1743419433870,-500.0,0.00019178,2]
[356909672,1743419433881,-500.0,0.00019178,2]
[356909673,1743419433891,-500.0,0.00019178,2]
[356909674,1743419433901,-500.0,0.00019178,2]
[356909675,1743419433911,-500.0,0.00019178,2]
[356909676,1743419433920,-500.0,0.00019178,2]
[356909677,1743419433930,-500.0,0.00019178,2]
[356909678,1743419433940,-500.0,0.00019178,2]
[356909679,1743419433950,-500.0,0.00019178,2]
[356909680,1743419433959,-500.0,0.00019178,2]
[356909681,1743419433970,-500.0,0.00019178,2]
[356909682,1743419433980,-500.0,0.00019178,2]
[356909683,1743419433990,-500.0,0.00019178,2]
[356909684,1743419433999,-500.0,0.00019178,2]
[356909685,1743419434010,-500.0,0.00019178,2]
[356909686,1743419434019,-500.0,0.00019178,2]
[356909687,1743419434029,-500.0,0.00019178,2]
[356909688,1743419434037,-500.0,0.00019178,2]
[356909689,1743419434046,-500.0,0.00019178,2]
[356909690,1743419434055,-500.0,0.00019178,2]
[356909691,1743419434065,-500.0,0.00019178,2]
[356909692,1743419434075,-500.0,0.00019178,2]
[356909693,1743419434084,-563.02,0.00019178,2]
[356909694,1743419434094,-500.0,0.00019178,2]
[356909695,1743419434104,-200.0,0.00019178,2]
[356909696,1743419434113,-500.0,0.00019178,2]
[356909697,1743419434122,-500.0,0.00019178,2]
[356909698,1743419434132,-500.0,0.00019178,2]
[356909699,1743419434143,-500.0,0.00019178,2]
[356909700,1743419434153,-500.0,0.00019178,2]
[356909701,1743419434163,-500.0,0.00019178,2]
[356909702,1743419434173,-500.0,0.00019178,2]
[356909703,1743419434182,-500.0,0.00019178,2]
[356909704,1743419434192,-339.37511786,0.00019178,2]
[356909705,1743419434202,-500.0,0.00019178,2]
[356909706,1743419434212,-500.0,0.00019178,2]
[356909707,1743419434222,-500.0,0.00019178,2]
[356909708,1743419434231,-500.0,0.00019178,2]
[356909709,1743419434241,-500.0,0.00019178,2]
[356909710,1743419434251,-500.0,0.00019178,2]
[356909711,1743419434260,-500.0,0.00019178,2]
[356909712,1743419434270,-500.0,0.00019178,2]
[356909713,1743419434280,-500.0,0.00019178,2]
[356909714,1743419434289,-500.0,0.00019178,2]
[356909715,1743419434299,-500.0,0.00019178,2]
[356909716,1743419434308,-500.0,0.00019178,2]
[356909717,1743419434320,-500.0,0.00019178,2]
[356909718,1743419434330,-500.0,0.00019178,2]
[356909719,1743419434340,-500.0,0.00019178,2]
[356909720,1743419434350,-500.0,0.00019178,2]
[356909721,1743419434360,-500.0,0.00019178,2]
[356909722,1743419434370,-500.0,0.00019178,2]
[356909723,1743419434380,-500.0,0.00019178,2]
[356909724,1743419434391,-590.51,0.00019178,2]
[356909725,1743419434401,-500.0,0.00019178,2]
[356909726,1743419434411,-500.0,0.00019178,2]
[356909727,1743419434420,-500.0,0.00019178,2]
[356909728,1743419434431,-500.0,0.00019178,2]
[356909729,1743419434440,-500.0,0.00019178,2]
[356909730,1743419434450,-500.0,0.00019178,2]
[356909731,1743419434459,-500.0,0.00019178,2]
[356909732,1743419434469,-500.0,0.00019178,2]
[356909733,1743419434479,-500.0,0.00019178,2]
[356909734,1743419434488,-500.0,0.00019178,2]
[356909735,1743419434498,-500.0,0.00019178,2]
[356909736,1743419434508,-500.0,0.00019178,2]
[356909737,1743419434518,-500.0,0.00019178,2]
[356909738,1743419434528,-500.0,0.00019178,2]
[356909739,1743419434538,-500.0,0.00019178,2]
[356909740,1743419434548,-500.0,0.00019178,2]
[356909741,1743419434558,-500.0,0.00019178,2]
[356909742,1743419434568,-500.0,0.00019178,2]
[356909743,1743419434577,-500.0,0.00019178,2]
[356909744,1743419434587,-500.0,0.00019178,2]
[356909745,1743419434598,-500.0,0.00019178,2]
[356909746,1743419434608,-500.0,0.00019178,2]
[356909747,1743419434618,-500.0,0.00019178,2]
[356909748,1743419434627,-500.0,0.00019178,2]
[356909749,1743419434637,-500.0,0.00019178,2]
[356909750,1743419434647,-500.0,0.00019178,2]
[356909751,1743419434657,-500.0,0.00019178,2]
[356909752,1743419434667,-500.0,0.00019178,2]
[356909753,1743419434678,-500.0,0.00019178,2]
[356909754,1743419434688,-500.0,0.00019178,2]
[356909755,1743419434698,-500.0,0.00019178,2]
[356909756,1743419434708,-500.0,0.00019178,2]
[356909757,1743419434718,-500.0,0.00019178,2]
[356909758,1743419434859,-500.0,0.00019178,2]
[356909759,1743419434869,-500.0,0.00019178,2]
[356909760,1743419434878,-500.0,0.00019178,2]
[356909761,1743419434888,-500.0,0.00019178,2]
[356909762,1743419434898,-500.0,0.00019178,2]
[356909763,1743419434907,-500.0,0.00019178,2]
[356909764,1743419434917,-500.0,0.00019178,2]
[356909765,1743419434927,-500.0,0.00019178,2]
[356909766,1743419434936,-500.0,0.00019178,2]
[356909767,1743419434947,-500.0,0.00019178,2]
[356909768,1743419434957,-500.0,0.00019178,2]
[356909769,1743419434967,-500.0,0.00019178,2]
[356909770,1743419434976,-500.0,0.00019178,2]
[356909771,1743419434986,-500.0,0.00019178,2]
[356909772,1743419434996,-500.0,0.00019178,2]
[356909773,1743419435006,-500.0,0.00019178,2]
[356909774,1743419435015,-500.0,0.00019178,2]
[356909775,1743419435025,-500.0,0.00019178,2]
[356909776,1743419435035,-191.42554219,0.00019178,2]
[356909777,1743419435044,-500.0,0.00019178,2]
[356909778,1743419435054,-500.0,0.00019178,2]
[356909779,1743419435063,-500.0,0.00019178,2]
[356909780,1743419435073,-500.0,0.00019178,2]
[356909781,1743419435082,-500.0,0.00019178,2]
[356909782,1743419435092,-500.0,0.00019178,2]
[356909783,1743419435102,-500.0,0.00019178,2]
[356909784,1743419435112,-500.0,0.00019178,2]
[356909785,1743419435121,-500.0,0.00019178,2]
[356909786,1743419435131,-500.0,0.00019178,2]
[356909787,1743419435140,-500.0,0.00019178,2]
[356909788,1743419435150,-500.0,0.00019178,2]
[356909789,1743419435159,-500.0,0.00019178,2]
[356909790,1743419435169,-500.0,0.00019178,2]
[356909791,1743419435179,-500.0,0.00019178,2]
[356909792,1743419435188,-500.0,0.00019178,2]
[356909793,1743419435199,-500.0,0.00019178,2]
[356909794,1743419435209,-500.0,0.00019178,2]
[356909795,1743419435218,-500.0,0.00019178,2]
[356909796,1743419435228,-500.0,0.00019178,2]
[356909797,1743419435237,-500.0,0.00019178,2]
[356909798,1743419435247,-500.0,0.00019178,2]
[356909799,1743419435256,-505.39025471,0.00019178,2]
[356909800,1743419435265,-3349.83,0.00019178,2]
[356909801,1743419435273,-500.0,0.00019178,2]
[356909802,1743419435281,-500.0,0.00019178,2]
[356909803,1743419435288,-500.0,0.00019178,2]
[356909804,1743419435296,-500.0,0.00019178,2]
[356909805,1743419435303,-500.0,0.00019178,2]
[356909806,1743419435312,-733.98,0.00019178,2]
[356909807,1743419435324,-1339.8,0.00019178,2]
[356909808,1743419435333,-500.0,0.00019178,2]
[356909809,1743419435342,-571.35569115,0.00019178,2]
[356909810,1743419435352,-500.0,0.00019178,2]
[356909811,1743419435363,-759.44,0.00019178,2]
[356909812,1743419435372,-500.0,0.00019178,2]
[356909813,1743419435381,-500.0,0.00019178,2]
[356909814,1743419435391,-500.0,0.00019178,2]
[356909815,1743419435400,-510.89695449,0.00019178,2]
[356909816,1743419435410,-500.0,0.00019178,2]
[356909817,1743419435419,-493.69620336,0.00019178,2]
[356909818,1743419435429,-500.0,0.00019178,2]
[356909819,1743419435439,-1267.0,0.00019178,2]
[356909820,1743419435449,-500.0,0.00019178,2]
[356909821,1743419435458,-500.0,0.00019178,2]
[356909822,1743419435467,-500.0,0.00019178,2]
[356909823,1743419435476,-500.0,0.00019178,2]
[356909824,1743419435486,-500.0,0.00019178,2]
[356909825,1743419435495,-500.0,0.00019178,2]
[356909826,1743419435504,-500.0,0.00019178,2]
[356909827,1743419435513,-500.0,0.00019178,2]
[356909828,1743419435522,-500.0,0.00019178,2]
[356909829,1743419435531,-500.0,0.00019178,2]
[356909830,1743419435541,-500.0,0.00019178,2]
[356909831,1743419435550,-3792.02,0.00019178,2]
[356909832,1743419435559,-540.99,0.00019178,2]
[356909833,1743419435569,-500.0,0.00019178,2]
[356909834,1743419435577,-500.0,0.00019178,2]
[356909835,1743419435587,-500.0,0.00019178,2]
[356909836,1743419435596,-591.75471107,0.00019178,2]
[356909837,1743419435605,-500.0,0.00019178,2]
[356909838,1743419435614,-500.0,0.00019178,2]
[356909839,1743419435623,-500.0,0.00019178,2]
[356909840,1743419435633,-500.0,0.00019178,2]
[356909841,1743419435642,-500.0,0.00019178,2]
[356909842,1743419435651,-500.0,0.00019178,2]
[356909843,1743419435661,-500.0,0.00019178,2]
[356909844,1743419435670,-500.0,0.00019178,2]
[356909845,1743419435679,-500.0,0.00019178,2]
[356909846,1743419435689,-500.0,0.00019178,2]
[356909847,1743419435699,-500.0,0.00019178,2]
[356909848,1743419435708,-500.0,0.00019178,2]
[356909849,1743419435717,-500.0,0.00019178,2]
[356909850,1743419435727,-500.0,0.00019178,2]
[356909851,1743419435736,-500.0,0.00019178,2]
[356909852,1743419435745,-500.0,0.00019178,2]
[356909853,1743419435755,-795.45,0.00019178,2]
[356909854,1743419435766,-500.0,0.00019178,2]
[356909855,1743419435775,-500.0,0.00019178,2]
[356909856,1743419435784,-500.0,0.00019178,2]
[356909857,1743419435793,-500.0,0.00019178,2]
[356909858,1743419435803,-500.0,0.00019178,2]
[356909859,1743419435812,-1058.65,0.00019178,2]
[356909860,1743419435822,-500.0,0.00019178,2]
[356909861,1743419435833,-814.83,0.00019178,2]
[356909862,1743419435844,-500.0,0.00019178,2]
[356909863,1743419435856,-500.0,0.00019178,2]
[356909864,1743419435866,-615.41005948,0.00019178,2]
[356909865,1743419435886,-199.02994052,0.00019178,2]
[356909866,1743419435895,-500.0,0.00019178,2]
[356909867,1743419435905,-644.6,0.00019178,2]
[356909868,1743419435915,-500.0,0.00019178,2]
[356909869,1743419435925,-500.0,0.00019178,2]
[356909870,1743419435935,-181.34668856,0.00019178,2]
[356909871,1743419435947,-318.65331144,0.00019178,2]
[356909872,1743419435957,-235.17731899,0.00019178,2]
[356909873,1743419435973,-324.35268101,0.00019178,2]
[356909874,1743419435983,-101.82731899,0.00019178,2]
[356909875,1743419435995,-398.17268101,0.00019178,2]
[356909876,1743419436005,-500.0,0.00019178,2]
[356909877,1743419436015,-500.0,0.00019178,2]
[356909878,1743419436025,-500.0,0.00019178,2]
[356909879,1743419436034,-298.40685539,0.00019178,2]
[356909880,1743419436046,-272.17314461,0.00019178,2]
[356909881,1743419436056,-203.72685539,0.00019178,2]
[356909910,1743419438324,-151.0,0.00018862,2]
[356909912,1743419438335,-151.0,0.00018862,2]
[356909914,1743419438346,-151.0,0.00018862,2]
[356909916,1743419438357,-151.0,0.00018862,2]
[356909918,1743419438367,-151.0,0.00018862,2]
[356909920,1743419438376,-143.96979116,0.00018862,2]
[356909926,1743419438434,-7.03020884,0.00018862,2]
[356909928,1743419438445,-296.27314461,0.00019178,2]
[356909930,1743419438455,-3258.35,0.00019178,2]
[356909932,1743419438465,-500.0,0.00019178,2]
[356909934,1743419438475,-500.0,0.00019178,2]
[356909936,1743419438485,-500.0,0.00019178,2]
[356909938,1743419438494,-532.69930136,0.00019178,2]
[356909940,1743419438503,-500.0,0.00019178,2]
[356909942,1743419438512,-1012.03,0.00019178,2]
[356909944,1743419438521,-500.0,0.00019178,2]
[356909946,1743419438530,-500.0,0.00019178,2]
[356909948,1743419438540,-500.0,0.00019178,2]
[356909950,1743419438550,-691.44,0.00019178,2]
[356909952,1743419438560,-500.0,0.00019178,2]
[356909954,1743419438570,-500.0,0.00019178,2]
[356909956,1743419438580,-500.0,0.00019178,2]
[356909958,1743419438589,-500.0,0.00019178,2]
[356909960,1743419438599,-886.43,0.00019178,2]
[356909962,1743419438608,-500.0,0.00019178,2]
[356909964,1743419438618,-500.0,0.00019178,2]
[356909966,1743419438628,-500.0,0.00019178,2]
[356909968,1743419438638,-500.0,0.00019178,2]
[356909970,1743419438648,-500.0,0.00019178,2]
[356909972,1743419438658,-2182.02,0.00019178,2]
[356909974,1743419438669,-500.0,0.00019178,2]
[356909976,1743419438679,-500.0,0.00019178,2]
[356909978,1743419438689,-500.0,0.00019178,2]
[356909980,1743419438699,-500.0,0.00019178,2]
[356909981,1743419438708,-500.0,0.00019178,2]
[356909982,1743419438718,-500.0,0.00019178,2]
[356909983,1743419438728,-500.0,0.00019178,2]
[356909984,1743419438738,-714.59,0.00019178,2]
[356909985,1743419438747,-500.0,0.00019178,2]
[356909986,1743419438757,-2060.75862334,0.00019178,2]
[356909990,1743419440651,-328.88564466,0.00019178,2]
[356909993,1743419440759,-400.34428079,0.00019178,2]
[356909995,1743419440772,-2908.26145121,0.00019178,2]
[356909997,1743419440781,-428.54017131,0.00019178,2]
[356910078,1743419446397,-155.0,0.00018862,2]
[356910080,1743419446408,-373.61926011,0.00018986,2]
[356910082,1743419446417,-71.45982869,0.00019178,2]
[356910084,1743419446427,-500.0,0.00019178,2]
[356910085,1743419446437,-396.44099226,0.00019178,2]
[356910103,1743420524288,369.45083302,0.0001,2]
[356910138,1743420632609,-186.478929,0.00013699,2]
[356910139,1743420632619,-300.0,0.00017059,2]
[356910140,1743420632629,-508.18264071,0.00017059,2]
[356910141,1743420632638,-34.39429737,0.00017059,2]
[356910142,1743420632650,-374.80880435,0.00017059,2]
[356910143,1743420632718,-90.79689828,0.00017059,2]
[356910144,1743420632730,-500.0,0.00017059,2]
[356910145,1743420632740,-500.0,0.00017059,2]
[356910146,1743420632750,-500.0,0.00017059,2]
[356910147,1743420632761,-500.0,0.00017059,2]
[356910148,1743420632771,-177.04603745,0.00017059,2]
[356910149,1743420632781,-500.0,0.00017059,2]
[356910150,1743420632790,-650.0,0.00017059,2]
[356910151,1743420632800,-500.0,0.00017059,2]
[356910152,1743420632810,-1689.44732815,0.0001706,2]
[356910153,1743420632819,-211.21597992,0.00017061,2]
[356910154,1743420632828,-500.0,0.00017061,2]
[356910155,1743420632838,-500.0,0.00017061,2]
[356910156,1743420632848,-216.19739545,0.00017061,2]
[356910157,1743420632858,-24900.0,0.00017062,2]
[356910158,1743420632867,-1659.07037534,0.00017229,2]
[356910159,1743420632877,-541.315455,0.00017329,2]
[356910160,1743420632886,-215.0797119,0.00017372,2]
[356910161,1743420632895,-250.0,0.00017476,2]
[356910162,1743420632905,-10000.0,0.00017996,2]
[356910163,1743420632915,-150.0,0.00018027,2]
[356910164,1743420632935,-150.0,0.00018027,2]
[356910165,1743420632948,-150.0,0.00018027,2]
[356910166,1743420632959,-150.0,0.00018027,2]
[356910167,1743420632969,-150.0,0.00018027,2]
[356910168,1743420632978,-150.0,0.00018027,2]
[356910169,1743420632988,-150.0,0.00018027,2]
[356910170,1743420632998,-150.0,0.00018027,2]
[356910171,1743420633008,-150.0,0.00018027,2]